Cogmind - Beta 10.2 @@@ ROGUE MODE // 2021.01.02 @ 03:18:10 // Winter2019/RPGLIKE Player: Torako Result: Destroyed by 8R-AWN with 8R-AWN's Boregun Performance ------------- Evolutions (1) 500 Regions Visited (5) 1000 Robots Destroyed (44) 220 Value Destroyed (1129) 1129 Prototype IDs (29) 580 Alien Tech Used (0) 0 Bonus (300) 300 TOTAL SCORE: 3729 Bonus ------- Aligned with FarCom 300 Cogmind --------- Core Integrity 0/700 Matter 204/300 Energy 280/280 System Corruption 1% Temperature Cool (0) Movement Walking (120) Location -9/Exiles Parts ------- > --- POWER (1) -------- Cooled Ion Engine > --- PROPULSION (2) --- Aluminum Leg Improved Aluminum Leg > --- UTILITY (2) ------ (None) > --- WEAPON (2) ------- Hammer Mining Claw > --- INVENTORY (4) ---- Improved EM Shotgun Heavy Assault Rifle Improved Assault Rifle Rocket Launcher Peak State ------------ > --- POWER ------------ Cooled Ion Engine > --- PROPULSION ------- Aluminum Leg Aluminum Leg > --- UTILITY ---------- Improved Utility Shielding Improved Trap Extractor > --- WEAPON ----------- Improved EM Shotgun Improved EM Shotgun > --- INVENTORY -------- EM Shotgun Grenade Launcher Datajack Mining Claw [Rating: 18] Favorites ----------- Power Ion Engine Engine Ion Engine Propulsion Aluminum Leg Leg Aluminum Leg Utility Visual Processing Unit Device Improved Trap Extractor Processor Visual Processing Unit Protection Medium Armor Plating Weapon EM Shotgun Energy Gun EM Shotgun Ballistic Gun Improved Assault Rifle Launcher Grenade Launcher Impact Weapon Hammer Slashing Weapon Mining Claw Special Melee Weapon Datajack Build | -11 -10 -10 -9 -9 -9 ------- Run | Scr Mat Min Mat Min Exi Slots Evolved 3 | 3 . . . . . Power . | . . . . . . Propulsion 1 | 1 . . . . . Utility 1 | 1 . . . . . Weapon 1 | 1 . . . . . Parts Attached 36 | 5 9 5 11 2 4 Power 2 | 1 . . 1 . . Engine 2 | 1 . . 1 . . Core . | . . . . . . Reactor . | . . . . . . Propulsion 5 | 2 2 . 1 . . Treads . | . . . . . . Leg 5 | 2 2 . 1 . . Wheel . | . . . . . . Hover . | . . . . . . Flight . | . . . . . . Utility 6 | . 2 2 2 . . Device 1 | . . 1 . . . Storage . | . . . . . . Processor 2 | . 2 . . . . Hackware . | . . . . . . Protection 3 | . . 1 2 . . Artifact . | . . . . . . Weapon 23 | 2 5 3 7 2 4 Energy Gun 11 | . 4 1 5 . 1 Energy Cannon . | . . . . . . Ballistic Gun 6 | 2 1 . 2 1 . Ballistic Cannon . | . . . . . . Launcher 2 | . . 1 . . 1 Special Weapon . | . . . . . . Impact Weapon 1 | . . . . . 1 Slashing Weapon 2 | . . . . 1 1 Piercing Weapon . | . . . . . . Special Melee Weapon 1 | . . 1 . . . Unidentified Prototypes 3 | . . . 3 . . Parts Lost 2 | . . . . . 2 Power . | . . . . . . Propulsion . | . . . . . . Utility 2 | . . . . . 2 Weapon . | . . . . . . Highest Loss Streak 1 | . . . . . 1 Average Slot Usage (%) 96 | . 96 99 95 100 93 Engine 13 | . 14 14 13 14 14 Leg 27 | . 27 28 28 28 28 Device 3 | . . 5 9 . . Processor 10 | . 24 15 . . . Protection 11 | . . 5 15 28 21 Energy Gun 18 | . 24 21 18 14 7 Ballistic Gun 6 | . 3 . 9 11 7 Launcher 1 | . . 6 . . 1 Slashing Weapon 1 | . . . . 2 8 Naked Turns . | . . . . . . Heaviest Build 24 | 8 11 16 24 24 24 Greatest Support 23 | 20 20 20 23 23 23 Greatest Overweight (x) 3 | 1 3 . 1 1 1 Average Overweight (x) . | . . . . . . Largest Inventory Capacity 4 | 3 3 3 4 4 4 Average Capacity 3 | 3 3 3 3 4 4 Most Carried 4 | 1 3 3 4 4 4 Average Carried 3 | . 2 2 3 4 4 Final Capacity 4 | 3 3 3 4 4 4 Final Carried 4 | 1 3 3 4 4 4 Class Distribution -------------------- 77% | Hacker-Mutant 22% | Mutant Dominant Class ---------------- Mutant | -10/Materials Hacker-Mutant | -10/Mines Hacker-Mutant | -9/Materials Hacker-Mutant | -9/Mines Hacker-Mutant | -9/Exiles Resources | -11 -10 -10 -9 -9 -9 ----------- Run | Scr Mat Min Mat Min Exi Matter Collected 694 | 250 126 50 203 65 . Remotely . | . . . . . . Salvage Created 1360 | . 491 11 691 154 13 Parts 109 | . 52 2 44 11 . Haulers Intercepted 4 | . 1 . 3 . . Recyclers Shooed . | . . . . . . Parts Field Recycled . | . . . . . . Retrieved Matter . | . . . . . . Parts Self-Destructed . | . . . . . . Prevented . | . . . . . . Kills | -11 -10 -10 -9 -9 -9 ------- Run | Scr Mat Min Mat Min Exi Combat Hostiles Destroyed 39 | . 16 . 11 5 7 Guns 32 | . 16 . 11 5 . AOE 7 | . . . . . 7 Classes Destroyed 11 | . 5 1 4 . 1 Worker 1 | . . 1 . . . Builder 1 | . 1 . . . . Hauler 4 | . 1 . 3 . . Recycler 1 | . . . 1 . . Operator 1 | . . . 1 . . Watcher 4 | . 2 . 2 . . Swarmer 5 | . 5 . . . . Grunt 23 | . 11 . 7 5 . Brawler 1 | . . . 1 . . Sentry 3 | . . . 3 . . Assembled 7 | . . . . . 7 Best Kill Streak 7 | . 4 1 4 2 7 Combat Bots Only 7 | . 3 . 3 2 7 Max Kills in Single Turn 2 | . 1 1 1 1 2 Gunslinging . | . . . . . . Exploded 2 | . . . . . 2 Melee . | . . . . . . Uniques/NPCs Destroyed . | . . . . . . Combat | -11 -10 -10 -9 -9 -9 -------- Run | Scr Mat Min Mat Min Exi Damage Taken 1971 | . 489 30 303 133 1016 Core 1454 | . 395 22 232 101 704 Absorbed by Shields . | . . . . . . Redirected to Core 1097 | . 275 22 172 68 560 Core Remaining (%) 98 | 100 . 96 . . . Volleys Fired 122 | . 50 1 44 15 12 Largest 2 | . 2 2 2 2 1 Hottest 90 | . 90 90 90 68 45 Shots Fired 217 | . 100 2 76 27 12 Gun 211 | . 100 2 76 27 6 Cannon . | . . . . . . Launcher 6 | . . . . . 6 Special . | . . . . . . Kinetic 64 | . 18 . 31 15 . Thermal . | . . . . . . Explosive 6 | . . . . . 6 Electromagnetic 147 | . 82 2 45 12 6 Robot Hit Streak 22 | . 11 1 11 13 22 Robot Miss Streak 6 | . 6 1 2 2 . Penetration Max . | . . . . . . Secondary Targets 3 | . 1 . 1 1 . Max Gunslinging Chain 1 | . 1 . 1 1 . Shots Hit Robots 217 | . 75 1 67 22 52 Core Hits 103 | . 33 1 33 11 25 Critical Hits 3 | . . . 3 . . Critical Kills 1 | . . . 1 . . Critical Parts Destroyed 2 | . . . 2 . . Melee Attacks 72 | . . . . 13 59 Impact 12 | . . . . . 12 Slashing 60 | . . . . 13 47 Piercing . | . . . . . . Sneak Attacks . | . . . . . . Combat Hostiles . | . . . . . . Follow-up Attacks 12 | . . . . . 12 Damage Inflicted 3507 | . 658 10 1088 325 1426 Guns 1989 | . 658 10 1017 298 6 Cannons . | . . . . . . Explosions 564 | . . . 71 27 466 Melee 954 | . . . . . 954 Ramming . | . . . . . . Kinetic 512 | . 86 . 310 116 . Thermal 98 | . . . 71 27 . Explosive 466 | . . . . . 466 Electromagnetic 1477 | . 572 10 707 182 6 Impact 179 | . . . . . 179 Slashing 775 | . . . . . 775 Piercing . | . . . . . . Highest Corruption 2 | . 2 2 1 1 1 Average Corruption 1 | . 2 2 1 1 1 Corruption Purged . | . . . . . . Effects 10 | . 1 4 4 . 1 Message Errors 4 | . . 1 3 . . Heat Flow Errors 1 | . 1 . . . . Energy Discharges 2 | . . 1 1 . . Data Loss (minor) 2 | . . 2 . . . Targeting Errors 1 | . . . . . 1 Overload Shots . | . . . . . . Overflow Damage 43 | . . . 7 . 36 Projectiles . | . . . . . . Explosions 23 | . . . 7 . 16 Melee 20 | . . . . . 20 Knockbacks . | . . . . . . Impact . | . . . . . . Kinetic . | . . . . . . Secondary . | . . . . . . Self-Inflicted Damage . | . . . . . . Shots . | . . . . . . Rammed . | . . . . . . Targets Rammed . | . . . . . . Kicked . | . . . . . . Crushed . | . . . . . . Highest Temperature 438 | . 294 30 438 132 72 Average Temperature 79 | . 95 18 77 46 37 Received Heat Transfer 429 | . 180 . 165 84 . Effects 3 | . . . 3 . . Shutdowns 1 | . . . 1 . . Interference 2 | . . . 2 . . Siege Activations . | . . . . . . Robots Corrupted . | . . . . . . Combat Hostiles . | . . . . . . Parts Fried 4 | . 1 . 2 1 . Impact Corruptions 1 | . . . . . 1 Robots Melted . | . . . . . . Combat Hostiles . | . . . . . . Parts Melted . | . . . . . . Heat Transferred 100 | . . . 50 50 . Parts Sabotaged . | . . . . . . Parts Stolen . | . . . . . . Parts Stripped . | . . . . . . Power Chain Reactions 3 | . . . 2 1 . Missiles Intercepted . | . . . . . . Alert | -11 -10 -10 -9 -9 -9 ------- Run | Scr Mat Min Mat Min Exi Peak Influence 290 | . 251 36 290 222 . Initial 112 | . . 31 13 112 . Average 116 | . 128 35 126 172 . Maximum Alert Level 1 | . 1 . 1 1 . Low Security (%) 79 | 100 76 100 78 64 . Level 1 20 | . 23 . 21 35 . Level 2 . | . . . . . . Level 3 . | . . . . . . Level 4 . | . . . . . . Level 5 . | . . . . . . High Security . | . . . . . . Max Security . | . . . . . . Squads Dispatched 10 | . 5 . 5 . . Investigation 4 | . 2 . 2 . . Extermination . | . . . . . . Reinforcement 6 | . 3 . 3 . . Assault . | . . . . . . Garrison . | . . . . . . Intercept . | . . . . . . Construction Impeded . | . . . . . . Haulers Reinforced . | . . . . . . Stealth | -11 -10 -10 -9 -9 -9 --------- Run | Scr Mat Min Mat Min Exi Distress Signals 8 | . 1 . 5 2 . Communications Jammed . | . . . . . . Distress Signals . | . . . . . . Times Spotted 62 | . 26 . 26 5 5 Peak Tracking Total 9 | . 4 . 6 2 9 Tactical Retreats 5 | . 2 . 3 . . Traps | -11 -10 -10 -9 -9 -9 ------- Run | Scr Mat Min Mat Min Exi Traps Triggered 5 | . 3 1 1 . . Indirectly . | . . . . . . Trap Hack Attempts . | . . . . . . Triggered . | . . . . . . Disarmed . | . . . . . . Reprogrammed . | . . . . . . Reused . | . . . . . . Traps Extracted . | . . . . . . Installed . | . . . . . . Triggered . | . . . . . . Machines | -11 -10 -10 -9 -9 -9 ---------- Run | Scr Mat Min Mat Min Exi Machines Disabled 2 | . . . . . 2 Max in Single Turn 1 | . . . . . 1 Machines Sabotaged . | . . . . . . Garrisons Compromised . | . . . . . . Overloaded Fab Kills . | . . . . . . Fab Network Shutdowns . | . . . . . . Hacking | -11 -10 -10 -9 -9 -9 --------- Run | Scr Mat Min Mat Min Exi Machines Accessed 12 | . 6 1 3 . 2 Terminals 7 | . 5 . 2 . . Fabricators . | . . . . . . Repair Stations . | . . . . . . Recycling Units 2 | . 1 . 1 . . Scanalyzers . | . . . . . . Garrison Access . | . . . . . . Total Hacks 33 | . 16 1 8 . 8 Successful 23 | . 10 1 4 . 8 Failed 10 | . 6 . 4 . . Catastrophic . | . . . . . . Database Lockouts . | . . . . . . Manual 17 | . 12 . 4 . 1 Terminals 18 | . 14 . 4 . . Fabricators . | . . . . . . Repair Stations . | . . . . . . Recycling Units 6 | . 2 . 4 . . Scanalyzers . | . . . . . . Garrison Access . | . . . . . . Terminal Hacks 14 | . 3 1 2 . 8 Record 7 | . . . . . 7 Prototype ID Bank 1 | . . . 1 . . Open Door 1 | . . 1 . . . Terminal Index 1 | . 1 . . . . Alert Level 1 | . 1 . . . . Unreport Threat 1 | . 1 . . . . Locate Traps 1 | . . . 1 . . EX-Prototype ID Bank 1 | . . . . . 1 Fabricator Hacks . | . . . . . . Repair Station Hacks . | . . . . . . Recycling Unit Hacks 2 | . 1 . 1 . . Report Inventory 2 | . 1 . 1 . . Scanalyzer . | . . . . . . Garrison Access Hacks . | . . . . . . Unauthorized Hacks 7 | . 6 . 1 . . Terminals 5 | . 5 . . . . Track 2 | . 2 . . . . Botnet 3 | . 3 . . . . Fabricators . | . . . . . . Repair Stations . | . . . . . . Recycling Units 2 | . 1 . 1 . . Tunnel 2 | . 1 . 1 . . Scanalyzers . | . . . . . . Garrison Access . | . . . . . . Data Cores Recovered . | . . . . . . Used . | . . . . . . Hacking Detections 5 | . 4 . 1 . . Full Trace Events 1 | . 1 . . . . Feedback Events . | . . . . . . Feedback Blocked . | . . . . . . Robot Schematics Acquired . | . . . . . . Robots Built . | . . . . . . Matter . | . . . . . . Time . | . . . . . . Total Robot Build Rating . | . . . . . . Part Schematics Acquired . | . . . . . . Parts Built . | . . . . . . Matter . | . . . . . . Time . | . . . . . . Total Part Build Rating . | . . . . . . Parts Repaired . | . . . . . . Time . | . . . . . . Parts Recycled . | . . . . . . Recycled Matter . | . . . . . . Retrieved Matter . | . . . . . . Retrieved Components . | . . . . . . Parts Scanalyzed . | . . . . . . Part Schematics Acquired . | . . . . . . Parts Damaged . | . . . . . . Bothacking | -11 -10 -10 -9 -9 -9 ------------ Run | Scr Mat Min Mat Min Exi Used RIF Installer . | . . . . . . Robots Hacked . | . . . . . . Non-combat . | . . . . . . Combat . | . . . . . . Robot Hacks Applied . | . . . . . . Relay Couplers Released . | . . . . . . Robots Rewired . | . . . . . . Allies Hacked . | . . . . . . Hacks Repelled . | . . . . . . Allies | -11 -10 -10 -9 -9 -9 -------- Run | Scr Mat Min Mat Min Exi Total Allies . | . . . . . . Largest Group . | . . . . . . Highest-Rated Group . | . . . . . . Highest-Rated Ally . | . . . . . . Total Orders . | . . . . . . Ally Attacks . | . . . . . . Total Damage . | . . . . . . Kills . | . . . . . . Allies Corrupted . | . . . . . . Allies Melted . | . . . . . . Intel | -11 -10 -10 -9 -9 -9 ------- Run | Scr Mat Min Mat Min Exi Robot Analysis Total . | . . . . . . Derelict Logs Recovered 1 | . . . . 1 . Drone Launches . | . . . . . . Drone Recoveries . | . . . . . . Exploration | -11 -10 -10 -9 -9 -9 ------------- Run | Scr Mat Min Mat Min Exi Turns Passed 2934 | 67 912 387 754 390 424 Spaces Moved 1713 | 51 576 300 434 198 154 Core 5 | 4 1 . . . . Treads . | . . . . . . Legs 1708 | 47 575 300 434 198 154 Wheels . | . . . . . . Hover . | . . . . . . Flight . | . . . . . . Fastest Speed 50 | 50 120 120 120 120 120 Average Speed 126 | 115 120 120 125 144 147 Slowest Speed 200 | 120 200 120 150 150 150 Overloaded Moves . | . . . . . . Propulsion Burnouts . | . . . . . . Robots Hopped . | . . . . . . Cave-ins Triggered . | . . . . . . Exploration Rate (%) 50 | 3 94 63 54 50 41 Regions Visited 5 Branch Regions 3 Pre-discovered Areas 3 | . 1 . 1 1 . Known Exits Taken 2 | . 1 1 . . . Unknown Exits Taken 3 | 1 . . 1 1 . Scrap Searched 3 | . . 1 . 2 . Spaces Dug . | . . . . . . Terrain Destroyed 10 | . . . 4 3 3 Melee . | . . . . . . Projectile . | . . . . . . AOE 10 | . . . 4 3 3 Terrain Rammed . | . . . . . . Walls Destroyed . | . . . . . . Machines Disabled . | . . . . . . Actions | -11 -10 -10 -9 -9 -9 --------- Run | Scr Mat Min Mat Min Exi Total 2146 | 56 701 325 574 248 242 Wait 112 | . 20 11 41 15 25 Move 1708 | 50 575 299 433 197 154 Hop . | . . . . . . Pick Up 19 | 1 8 3 7 . . Fast Attach 25 | 5 9 2 9 . . Attach 1 | . . 1 . . . Detach 8 | . 3 2 3 . . Swap 10 | . . 2 2 2 4 Drop 28 | . 9 3 16 . . Fire 122 | . 50 1 44 15 12 Melee 60 | . . . . 13 47 Ram . | . . . . . . Kick . | . . . . . . Crush . | . . . . . . Escape Stasis . | . . . . . . Rewire . | . . . . . . Trap . | . . . . . . Miscellaneous 53 | . 27 1 19 6 . Route ------- -11/Scrapyard -10/Materials (discovered 4 exits: *Mat x2 / *Min x2) -10/Mines (discovered 2 exits: *Mat x2) -9/Materials (discovered 5 exits: [*Mat x2] / [*Min x2] / [*Sto]) -9/Mines (discovered 2 exits: [*Mat] / *Exi) -9/Exiles (discovered 1 exit: [*Min]) History --------- Turn | Location | Event 1 | -11/Scrapyard | Upgraded with Propulsion slot (x1) 1 | -11/Scrapyard | Upgraded with Utility slot (x1) 1 | -11/Scrapyard | Upgraded with Weapon slot (x1) 17 | -11/Scrapyard | Discovered new exit (range 15) 68 | -11/Scrapyard | Entered Materials 272 | -10/Materials | Discovered new exit (range 9) 314 | -10/Materials | Build established: Mutant 499 | -10/Materials | Discovered new exit (range 18) 657 | -10/Materials | Reached level 2 877 | -10/Materials | Discovered new exit (range 3) 878 | -10/Materials | Identified exit to Materials 954 | -10/Materials | Discovered new exit (range 14) 970 | -10/Materials | Build established: Hacker-Mutant 979 | -10/Materials | Identified exit to Mines 980 | -10/Materials | Entered Mines 1122 | -10/Mines | Assembled infested the area 1127 | -10/Mines | Assisted by a Guerilla fighting off Assembled 1187 | -10/Mines | Met a Derelict who couldn't figure out how to use a Trap Extractor 1252 | -10/Mines | Found a hidden stash of uninstalled traps 1279 | -10/Mines | Discovered exit to Materials (range 13) 1304 | -10/Mines | Discovered exit to Materials (range 14) 1367 | -10/Mines | Entered Materials 1369 | -9/Materials | Reached level 3 1474 | -9/Materials | Reached level 4 1613 | -9/Materials | Discovered new exit (range 15) 1848 | -9/Materials | Discovered new exit (range 11) 1941 | -9/Materials | Discovered new exit (range 10) 2032 | -9/Materials | Discovered new exit (range 9) 2063 | -9/Materials | Reached level 5 2087 | -9/Materials | Discovered new exit (range 15) 2121 | -9/Materials | Entered Mines 2122 | -9/Mines | Learned location of Storage (-9) 2190 | -9/Mines | Discovered new exit (range 9) 2263 | -9/Mines | Excavation squad dispatched 2263 | -9/Mines | A large section of the Mines collapsed 2486 | -9/Mines | Learned location of 1 exit from Materials 2505 | -9/Mines | Deemed a non-threat by the Exiles lab entrance 2505 | -9/Mines | Discovered new exit (range 5) 2511 | -9/Mines | Entered Exiles 2513 | -9/Exiles | Reached level 6 2535 | -9/Exiles | Discovered new exit (range 14) 2550 | -9/Exiles | Met 8R-AWN 2577 | -9/Exiles | Met EX-HEX 2624 | -9/Exiles | Met EX-BIN 2640 | -9/Exiles | Aligned with FarCom system 2642 | -9/Exiles | Given EX-Vault access code 2682 | -9/Exiles | Opened EX-Vault 2710 | -9/Exiles | Attacked by the Exiles 2758 | -9/Exiles | Destroyed 7 combat bots 2825 | -9/Exiles | Core integrity fell below 50% 2894 | -9/Exiles | Core integrity fell below 20% 2935 | -9/Exiles | Destroyed by 8R-AWN with 8R-AWN's Boregun Last Messages --------------- HV Slug penetrates HEX's Workstation. Penetrated by HV Slug. HV Slug penetrates Wall. Penetrated by HV Slug. Destroyed Prototype Protection. Hammer follow-up attack on 8R-AWN. HV Slug penetrates Wall. Hammer follow-up attack on 8R-AWN. Destroyed Prototype Device. 8R-AWN system corrupted by crushing effect. Penetrated by HV Slug. Hammer follow-up attack on 8R-AWN. Penetrated by HV Slug. System corrupted: Mining Claw targeting data glitched. Hammer follow-up attack on 8R-AWN. Penetrated by HV Slug. 8R-AWN Prototype Device ripped off. Penetrated by HV Slug. Hammer follow-up attack on 8R-AWN. Penetrated by HV Slug. Map ----- +----------------------------------------------------+ | | | | | | | | | | | | | | | | | | | | | | | | | ????????????????#########????????????????????????? | | ????????????????# ] #????????????????????????? | | ????????????????# ! #????????????????????????? | | ????????????????# | #????????????????????????? | | ????????????????# X#????????????????????????? | | ????????????????## ##????????????????????????? | | ????????????????#X #?????????????????????????? | | ????????????????## #?????????????????????????? | | ?????????????????# #?????????????????????????? | | ?????????????????# #########?????????????????? | | ?????????????????# ##""""""#?????????????????? | | ?????????????????# ## #?????????????????? | | ?????????????????# !g " #?????????????????? | | ?????????????????# ##@ #?????????????????? | | ??????????#####??# ## #?????????????????? | | ?????????#""""""?# #;##;#;##?????????????????? | | ?????????#"""" ## ##??# #???????????????????? | | ?????????#""X" #????# #??????????????????? | | ?????????#" #?????# #?????????????????? | | ?????????#" ## #??????# #????????????????? | | ?????????#""""""?# #?#######;#???????????????? | | ?????????##"####?# #?#""""""";#??????????????? | | ????????? ??????# #?#"""""""# ??????????????? | | ????????""???????# #?#"""""""#? ?????????????? | | ????????????????## ##"" """"#?? ????????????? | | ????????????????#" """"#???????????????? | | ????????????????#" """#???????????????? | | ????????????????#" """#???????????????? | | ????????????????# """#???????????????? | | ????????????????# """#???????????????? | | ????????????????#" """#???????????????? | | ????????????????## """"???????????????? | | ?????????????????# """#???????????????? | | ?????????????????#" "X" """"???????????????? | | ?????????????????#" """ #???????????????? | | ?????????????????#" """""""""#???????????????? | | ????????????????##" ###########???????????????? | | ???????????????##"" #?????????????????????????? | +----------------------------------------------------+ Best States ------------- Heat Dissipation 25 Energy Generation 14 Energy Capacity 280 Matter Stores 300 Matter Capacity 300 Sight Range 18 Robot Scan Range 16 Terrain Scan Density 10 Armor Coverage 375 Resistance: KI 10 Resistance: TH 10 Utility Shielding 66 Evasion (%) 40 Offensive Hacking 10 Defensive Hacking 10 Item Schematics ----------------- None Robot Schematics ------------------ None Fabricated ------------ Nothing Alien Tech Used ----------------- None Achievements -------------- None Challenges ------------ None RPGLIKE | -11 -10 -10 -9 -9 -9 --------- Run | Scr Mat Min Mat Min Exi Levels Raised 5 | . 1 . 3 . 1 XP Earned 10840 | 3000 2330 500 3610 1050 350 XP Spent 10460 | 3000 1300 . 4600 . 1560 Upgrades 30 | 6 4 . 16 . 4 Propulsion Slot 1 | 1 . . . . . Utility Slot 1 | 1 . . . . . Weapon Slot 1 | 1 . . . . . Core Integrity 2 | . . . . . 2 Inventory Capacity 4 | 3 . . 1 . . Sensor Range 8 | . . . 8 . . Ranged Accuracy 5 | . . . 3 . 2 Hack Attack % 2 | . 2 . . . . Hack Defense % 2 | . 2 . . . . KI Resistance % 2 | . . . 2 . . TH Resistance % 2 | . . . 2 . . Protomatter Created 579 | . 250 . 213 116 . Integrity Restored 1022 | . 529 5 367 121 . Core 750 | . 395 . 254 101 . Parts 272 | . 134 5 113 20 . Protomatter Decayed 502 | . 59 31 286 126 . Game ------ Seed RegenerativeGhostCarapace Manual? 0 Play Time 00:28:10 Cumulative 264.3 hours Start 2021.01.02 @ 02:53:23 End 2021.01.02 @ 03:18:10 Sessions 1 Manual Loads 0 Difficulty Rogue Special Mode Winter2019/RPGLIKE Game No. 264 Rogue 264 Adventurer 0 Explorer 0 Win Type - Total 13 Types 9/0/3/1/0/0/0/0/0 Lore% 83 Gallery% 89 Achievement% 75 Wizard Run 0 Options --------- ASCII 0 Keyboard 1 Movement Numpad Keybinds 0 Fullscreen 1 Font 18/SmallcapsGlow Map View 76x50 Tactical HUD 1 Map Filters NONE Filters NONE Steam 1 RUN: c78084cc-ed22-4f51-ae0b-f23ed238f2a5